[Event "MCCT Oslo Esports Cup 2022"]
[Site "Oslo"]
[Date "2022.04.20"]
[Round "1.1"]
[White "Giri, Anish"]
[Black "Hansen, Eric"]
[Result "1/2-1/2"]
[ECO "C88"]
[WhiteElo "2773"]
[BlackElo "2606"]
[Annotator "TA"]
[PlyCount "126"]
[EventDate "2022.04.14"]
[EventType "tourn"]
[EventCountry "NOR"]
[SourceTitle "playchess.com"]
[Source "ChessBase"]
[SourceQuality "1"]
[TimeControl "1500+10"]

{[%evp 18,126,25,13,40,13,29,17,27,29,28,0,16,4,7,0,48,39,31,39,35,8,9,8,3,8,8,1,0,8,0,0,2,0,0,0,0,0,0,0,1,1,1,1,6,1,7,7,8,8,8,4,4,4,4,4,4,0,0,0,0,0,0,0,0,0,48,0,48,0,13,0,48,0,0,0,0,0,0,0,0,0,0,0,0,0,0,0,0,0,0,0,0,0,0,0,0,0,0,0,0,0,0,0,0,0,0,0,0,0,0]} 1. e4 {[%emt 0:10:00]} e5 {[%emt 0:10:00]} 2. Nf3 {[%emt 0:00:02]} Nc6 {[%emt 0:00:05]} 3. Bb5 {[%emt 0:00:01][%cal Bf1b5,Bb5a4,Ba4b3,Bb3a2][%mdl 32]} a6 {[%emt 0:00:26]} 4. Ba4 {[%emt 0:00:01]} Nf6 {[%emt 0:00:02]} 5. O-O {[%emt 0:00:02]} Be7 {[%emt 0:00:05]} 6. Re1 {[%emt 0:00:00]} b5 {[%emt 0:00:08]} 7. Bb3 {[%emt 0:00:02]} O-O {[%emt 0:00:27]} 8. a4 {[%emt 0:00:22]} Bb7 {[%emt 0:00:52]} 9. d3 {[%emt 0:00:07]} d6 {[%emt 0:01:00]} 10. c3 {[%emt 0:00:35]} Qd7 {[%emt 0:00:11] C88: Closed Ruy Lopez: Anti-Marshall Systems.} 11. Bg5 {[%emt 0:01:33]} Na5 {[%emt 0:00:23]} 12. Ba2 {[%emt 0:00:22]} c5 {[%emt 0:00:07]} 13. Nbd2 {[%emt 0:00:47][%cal Bb1d2,Bd2f1,Bf1e3][%mdl 32] [#]} h6 $146 {[%emt 0:01:05]} ({Predecessor:} 13... bxa4 14. Bb1 Bc6 15. d4 cxd4 16. cxd4 h6 17. Bh4 Nh5 18. Bxe7 Qxe7 19. Bc2 Nb3 20. Nxb3 axb3 21. Bxb3 {½-½ (38) Caruana,F (2792)-Dubov,D (2720) Wijk aan Zee 2022}) 14. Bxf6 {[%emt 0:00:02]} Bxf6 {[%emt 0:00:00]} 15. axb5 {[%emt 0:00:55]} axb5 {[%emt 0:00:03]} 16. Nf1 {[%emt 0:00:01]} c4 {[%emt 0:01:09]} (16... Nc6 $11 {should be considered.}) 17. Ne3 $14 {[%emt 0:00:19][%cal Rd3c4]} Rfc8 {[%emt 0:00:56]} 18. Qe2 {[%emt 0:00:59][%cal Rd3c4]} Qc7 {[%emt 0:02:08]} 19. Rad1 {[%emt 0:00:50]} cxd3 {[%emt 0:04:08]} (19... g6 {keeps more tension.} 20. Ra1 h5 21. dxc4 bxc4 22. Bb1 Bg7) 20. Qxd3 {[%emt 0:01:30]} Nc4 {[%emt 0:00:01]} 21. Bxc4 {[%emt 0:00:11]} bxc4 {[%emt 0:00:00]} 22. Qxd6 {[%emt 0:03:18] White wants to play Ng4.} Bxe4 {[%emt 0:00:03]} (22... Qxd6 {is more complex.} 23. Rxd6 Bxe4 24. Ng4 Bxf3 25. Nxf6+ gxf6 26. gxf3 Rcb8) 23. Ng4 {[%emt 0:00:15][%csl LRe4,LRe5,LRf6]} Bxf3 {[%emt 0:00:13]} 24. gxf3 {[%emt 0:00:09]} Qc6 {[%emt 0:00:14]} 25. Qxc6 {[%emt 0:02:22]} (25. Kg2 {is interesting.} Rab8 26. Nxf6+ gxf6 27. Qxc6 Rxc6 28. Rd2) 25... Rxc6 {[%emt 0:00:02][%cal Bc8c6,Bc6b6,Bb6b5][%mdl 32]} 26. Nxe5 {[%emt 0:00:01]} Bxe5 {[%emt 0:01:00]} 27. Rxe5 $11 {[%emt 0:00:01][%mdl 4096] Endgame KRR-KRR} Rb6 {[%emt 0:00:00]} 28. Re2 {[%emt 0:00:19]} Rab8 {[%emt 0:01:07]} 29. Rdd2 {[%emt 0:00:34]} g6 {[%emt 0:00:11]} 30. Kg2 {[%emt 0:00:10]} Kg7 {[%emt 0:00:01]} 31. f4 {[%emt 0:00:05]} Rb5 {[%emt 0:00:06]} 32. Kg3 {[%emt 0:00:04]} R8b7 {[%emt 0:00:03]} 33. Kg4 {[%emt 0:00:15]} Kf6 {[%emt 0:00:06]} 34. h4 {[%emt 0:00:19]} Kg7 {[%emt 0:00:05]} 35. Kf3 {[%emt 0:00:05]} Kf6 {[%emt 0:00:27]} 36. Kg3 {[%emt 0:00:22]} Kg7 {[%emt 0:00:03]} 37. Re4 {[%emt 0:00:31]} Rxb2 {[%emt 0:00:03]} 38. Rxb2 {[%emt 0:00:00]} Rxb2 {[%emt 0:00:00]} 39. Rxc4 {[%emt 0:00:01] KR-KR} Rb1 {[%emt 0:00:20]} 40. Kg2 {[%emt 0:00:05]} Rc1 {[%emt 0:00:11]} 41. Rc5 {[%emt 0:00:08]} h5 {[%emt 0:00:06]} (41... Kf6 $11 {deserves consideration.}) 42. Rc6 {[%emt 0:00:10]} (42. f5 $1 $14) 42... Kf8 {[%emt 0:01:50]} (42... Rb1 $11) 43. c4 {[%emt 0:01:03]} (43. f5 $1 $14 {feels stronger.}) 43... Rc3 {[%emt 0:00:44]} 44. f3 {[%emt 0:00:25][%cal Of4f5]} Rc1 {[%emt 0:00:14]} (44... Ke7 $11) 45. c5 {[%emt 0:01:38]} (45. f5 $1 $14) 45... Kg7 {[%emt 0:00:41] The position is equal.} 46. Kf2 {[%emt 0:00:11]} Rh1 {[%emt 0:00:19]} 47. Kg3 {[%emt 0:00:35]} Rg1+ {[%emt 0:00:04]} 48. Kh2 {[%emt 0:00:02]} Rc1 {[%emt 0:00:04]} 49. Kg2 {[%emt 0:00:01]} (49. Kg3 $5 {[%cal Rf4f5]}) 49... Rc2+ {[%emt 0:00:14]} 50. Kg3 {[%emt 0:00:01][%cal Of4f5]} f5 {[%emt 0:00:54]} 51. Rc8 {[%emt 0:00:01]} Kh7 {[%emt 0:00:09]} 52. Rc7+ {[%emt 0:00:02]} Kg8 {[%emt 0:00:03]} 53. Kh3 {[%emt 0:00:06]} Kh8 {[%emt 0:00:03]} 54. Rc8+ {[%emt 0:00:07]} Kh7 {[%emt 0:00:03]} 55. Rc6 {[%emt 0:00:02]} Kg7 {[%emt 0:00:04]} 56. Kg3 {[%emt 0:00:02]} Kh7 {[%emt 0:00:01]} 57. Rc7+ {[%emt 0:00:02]} Kg8 {[%emt 0:00:01]} 58. c6 {[%emt 0:00:00]} Kh8 {[%emt 0:00:04]} 59. Rc8+ {[%emt 0:00:02]} Kh7 {[%emt 0:00:03]} 60. Kh3 {[%emt 0:00:02]} Kg7 {[%emt 0:00:02]} 61. Kg3 {[%emt 0:00:01]} Kh7 {[%emt 0:00:01]} 62. Rc7+ {[%emt 0:00:09]} Kg8 {[%emt 0:00:03]} 63. Rc8+ {[%emt 0:00:01]} Kh7 {[%emt 0:00:02] Weighted Error Value: White=0.06 (flawless) /Black=0.05 (flawless)} 1/2-1/2

[Event "MCCT Oslo Esports Cup 2022"]
[Site "Oslo"]
[Date "2022.04.20"]
[Round "1.1"]
[White "Mamedyarov, Shakhriyar"]
[Black "Le, Quang Liem"]
[Result "1/2-1/2"]
[ECO "D24"]
[WhiteElo "2771"]
[BlackElo "2709"]
[Annotator "TA"]
[PlyCount "92"]
[EventDate "2022.04.14"]
[EventType "tourn"]
[EventCountry "NOR"]
[SourceTitle "playchess.com"]
[Source "ChessBase"]
[SourceQuality "1"]
[TimeControl "1500+10"]

{[%evp 9,92,30,11,0,0,0,9,0,6,4,11,0,8,9,32,27,24,25,52,46,44,47,55,49,56,39,68,27,45,44,54,33,35,26,32,18,20,6,16,0,30,31,32,31,32,6,6,7,6,8,56,0,0,0,0,-16,-8,-8,-8,-16,-18,-27,0,0,0,0,0,0,0,0,0,-16,-16,-16,0,-8,0,-8,13,13,13,0,0,0,0]} 1. d4 {[%emt 0:10:00]} Nf6 {[%emt 0:10:00]} 2. c4 {[%emt 0:00:04]} e6 {[%emt 0:00:02]} 3. Nf3 {[%emt 0:00:00]} d5 {[%emt 0:00:04]} 4. Nc3 {[%emt 0:00:01]} dxc4 {[%emt 0:00:04]} 5. e4 {[%emt 0:00:08]} Bb4 {[%emt 0:00:03]} 6. Bxc4 {[%emt 0:00:07] D24: Queen's Gambit Accepted: 3 Nf3 Nf6 4 Nc3.} Nxe4 {[%emt 0:00:01]} 7. O-O {[%emt 0:00:01]} Nxc3 {[%emt 0:00:01]} 8. bxc3 {[%emt 0:00:01]} ({Of course not} 8. Qb3 Nd5 9. Bxd5 Qxd5 $17) 8... Be7 {[%emt 0:00:01]} 9. Ne5 {[%emt 0:00:35]} O-O {[%emt 0:00:04]} 10. Re1 {[%emt 0:00:24]} Nc6 {[%emt 0:01:56]} 11. Qg4 {[%emt 0:00:10]} f5 {[%emt 0:00:50]} 12. Qf3 {[%emt 0:00:05]} Nxe5 {[%emt 0:00:05]} 13. Rxe5 {[%emt 0:00:02]} Bd6 {[%emt 0:00:08]} 14. Rxf5 {[%emt 0:01:02]} ({Much worse is} 14. Bxe6+ Bxe6 15. Rxe6 Qd7 $11) 14... Rxf5 {[%emt 0:03:04]} 15. Qxf5 {[%emt 0:00:05]} Qf6 {[%emt 0:00:03]} 16. Qe4 {[%emt 0:00:32]} Rb8 {[%emt 0:00:15]} 17. Bd2 {[%emt 0:02:20]} b5 {[%emt 0:01:21]} 18. Bb3 {[%emt 0:01:56] [#] &Bianco is more active.} (18. Bd3 $5 {[%cal Re4h7]} g6 19. a4 $14) 18... Bd7 $146 {[%emt 0:00:06]} ({Predecessor:} 18... a5 19. Re1 a4 20. Bc2 Qf5 21. Rb1 Qxe4 22. Bxe4 Bd7 23. c4 c6 24. c5 Bc7 {½-½ (54) Troff,K (2511)-Hevia Alejano,C (2496) Chess.com INT 2017}) 19. Re1 {[%emt 0:00:02]} Re8 {[%emt 0:00:19]} 20. h4 {[%emt 0:00:48]} a5 {[%emt 0:00:42]} 21. Bg5 {[%emt 0:01:29]} Qg6 {[%emt 0:01:04]} 22. Qxg6 {[%emt 0:00:31]} hxg6 {[%emt 0:00:00]} 23. Re3 {[%emt 0:01:12]} Kh7 {[%emt 0:02:23]} 24. c4 {[%emt 0:03:50]} bxc4 {[%emt 0:01:01]} (24... a4 $5 {[%cal Ra4b3]} 25. Bc2 bxc4 $11) 25. Bxc4 {[%emt 0:00:00]} Rb8 {[%emt 0:00:39]} 26. Rb3 {[%emt 0:00:25] Inhibits Rb1+.} Rb6 {[%emt 0:00:58]} 27. Bd3 {[%emt 0:01:18]} a4 $1 {[%emt 0:00:16]} 28. Rxb6 {[%emt 0:00:06]} cxb6 $11 {[%emt 0:00:00][%mdl 4096] Endgame KBB-KBB} 29. h5 {[%emt 0:00:06]} Be8 {[%emt 0:00:36]} (29... b5 $11) 30. Bd8 {[%emt 0:00:06]} (30. f3 $14) 30... b5 {[%emt 0:00:06]} 31. Bg5 {[%emt 0:00:57]} b4 {[%emt 0:00:03]} 32. Bc1 {[%emt 0:00:24]} e5 {[%emt 0:01:34]} 33. dxe5 {[%emt 0:00:07]} Bxe5 {[%emt 0:00:00]} 34. Bc2 {[%emt 0:00:07]} a3 {[%emt 0:00:37]} 35. Kf1 {[%emt 0:01:20]} Bf7 {[%emt 0:00:21]} 36. hxg6+ $1 {[%emt 0:00:02] The position is equal.} Bxg6 {[%emt 0:00:00]} 37. Bb3 {[%emt 0:00:01]} Bd3+ {[%emt 0:00:19]} 38. Ke1 {[%emt 0:00:01]} Kg6 {[%emt 0:00:32]} 39. Kd1 {[%emt 0:00:04] Strongly threatening Bc2.} Kf6 {[%emt 0:00:11]} 40. f4 {[%emt 0:00:20]} Bc3 {[%emt 0:00:10]} 41. g4 {[%emt 0:00:01]} g6 {[%emt 0:00:16]} 42. Bd2 {[%emt 0:00:16]} Be4 {[%emt 0:00:14] [#] White must now prevent ...Bf3+.} 43. Ke2 {[%emt 0:00:36] Against Bf3+} Bf3+ {[%emt 0:00:30]} 44. Kxf3 {[%emt 0:00:01]} Bxd2 {[%emt 0:00:00]} 45. Ke4 {[%emt 0:00:02]} g5 {[%emt 0:00:01]} 46. fxg5+ {[%emt 0:00:08]} Kxg5 {[%emt 0:00:00] Weighted Error Value: White=0.08 (flawless) /Black=0.08 (flawless)} 1/2-1/2

[Event "MCCT Oslo Esports Cup 2022"]
[Site "Oslo"]
[Date "2022.04.20"]
[Round "1.1"]
[White "Duda, Jan-Krzysztof"]
[Black "Carlsen, Magnus"]
[Result "0-1"]
[ECO "B42"]
[WhiteElo "2750"]
[BlackElo "2864"]
[Annotator "TA"]
[PlyCount "86"]
[EventDate "2022.04.14"]
[EventType "tourn"]
[EventCountry "NOR"]
[SourceTitle "playchess.com"]
[Source "ChessBase"]
[SourceQuality "1"]
[TimeControl "1500+10"]

{[%evp 18,86,43,0,11,0,0,0,0,0,0,-21,-22,-27,-27,-18,-18,-16,-18,-59,0,0,0,0,0,0,40,35,64,15,18,0,47,0,0,10,10,7,8,0,14,0,0,0,14,25,99,86,85,92,92,92,92,92,92,92,80,13,15,17,13,0,0,-16,-37,-315,-315,-614,-614,-1789,-1637]} 1. e4 {[%emt 0:10:00]} c5 {[%emt 0:10:00]} 2. Nf3 {[%emt 0:00:03]} e6 {[%emt 0:00:02]} 3. d4 {[%emt 0:00:03]} cxd4 {[%emt 0:00:17]} 4. Nxd4 {[%emt 0:00:00]} a6 {[%emt 0:00:01]} 5. Bd3 {[%emt 0:00:57]} Bc5 {[%emt 0:00:03]} 6. Nb3 {[%emt 0:00:01]} Ba7 {[%emt 0:00:03]} 7. Qe2 {[%emt 0:00:14]} Nc6 {[%emt 0:00:23]} 8. Be3 {[%emt 0:00:11]} d6 {[%emt 0:00:43]} 9. Nc3 {[%emt 0:01:04]} Nf6 {[%emt 0:00:11]} 10. f4 {[%emt 0:02:20] was the old line (10.0-0-0).} b5 {[%emt 0:03:11] B42: Sicilian: Kan Variation: 5 Bd3.} 11. a3 {[%emt 0:03:26]} e5 {[%emt 0:01:09][%cal Be6e5,Be5d4,Bd4c3,Bc3b2][%mdl 32] [#]} 12. Bxa7 $146 {[%emt 0:02:55]} ({Predecessor:} 12. O-O Bg4 13. Qe1 Be6 14. Kh1 Bxe3 15. Qxe3 O-O 16. a4 exf4 17. Rxf4 b4 18. Nd5 {1-0 (30) Bruzon Batista,L (2528)-Schenk,A (2241) Oropesa del Mar 1999}) 12... Rxa7 {[%emt 0:00:03] The position is equal.} 13. f5 {[%emt 0:00:01] Against Be6} Nd4 {[%emt 0:00:25]} 14. Nxd4 {[%emt 0:00:50]} exd4 {[%emt 0:00:03]} 15. Qf2 {[%emt 0:00:00] [#]} dxc3 {[%emt 0:01:42]} 16. Qxa7 {[%emt 0:00:00]} cxb2 {[%emt 0:00:01]} 17. Rb1 {[%emt 0:00:19]} Qa5+ {[%emt 0:00:10]} 18. Ke2 {[%emt 0:00:12]} O-O {[%emt 0:00:02]} ({Black should play} 18... Qc3 $15 19. Qb6 O-O 20. Qxd6 Bb7) 19. Qd4 $11 {[%emt 0:01:03]} Re8 {[%emt 0:00:03][%cal Of6e4]} 20. Rhe1 {[%emt 0:00:20]} Bxf5 {[%emt 0:03:35] The board is on fire.} 21. Kf1 $1 {[%emt 0:00:01]} Bg6 {[%emt 0:03:16]} 22. Rxb2 {[%emt 0:00:23]} Qxa3 {[%emt 0:00:03]} 23. Rb4 {[%emt 0:00:44]} (23. Qb4 $1 $14 {is more appropriate.} Qxb4 24. Rxb4) 23... Qa5 $1 {[%emt 0:00:54]} 24. Qxd6 {[%emt 0:01:32]} h6 {[%emt 0:00:18]} (24... Ng4 $11 {might be stronger.}) 25. Rd4 {[%emt 0:00:14][%cal Bb4d4,Bd4d5,Bd5d6][%mdl 32] aiming for e5.} Ng4 {[%emt 0:00:12]} 26. h3 {[%emt 0:01:52]} Ne5 {[%emt 0:00:02]} 27. Qc5 {[%emt 0:00:16]} Qd2 {[%emt 0:00:19]} 28. Rd5 {[%emt 0:00:07]} f6 {[%emt 0:00:57]} 29. Qe3 $36 {[%emt 0:00:05][%mdl 2048] White is more active.} Qa5 {[%emt 0:00:50]} 30. Qd4 {[%emt 0:00:01]} Bf7 {[%emt 0:00:02]} 31. Rd6 {[%emt 0:00:08]} Nc4 {[%emt 0:00:27]} (31... Rc8 $11) 32. Ra1 {[%emt 0:00:43]} Qd2 {[%emt 0:00:20] [#] Hoping for ...Ne3+.} 33. Bxc4 {[%emt 0:00:02]} Qf4+ {[%emt 0:00:01]} 34. Kg1 {[%emt 0:00:02]} Bxc4 {[%emt 0:00:01]} 35. Rd8 {[%emt 0:00:11]} ({Of course not} 35. Rdxa6 $6 Rxe4 36. Qf2 Qxf2+ 37. Kxf2 Re2+ 38. Kg3 Bd5 $11) 35... Rxd8 {[%emt 0:00:02]} 36. Qxd8+ $16 {[%emt 0:00:00][%mdl 4096] Endgame KQR-KQB} Kh7 {[%emt 0:00:00]} 37. Re1 {[%emt 0:00:37]} (37. Qd4 $16) 37... Qe5 {[%emt 0:00:20]} 38. Qd7 {[%emt 0:00:14]} Be6 $1 {[%emt 0:00:24] Prevents Qf5+.} 39. Qd3 {[%emt 0:00:12]} a5 {[%emt 0:00:03][%cal Ba6a5,Ba5a4,Ba4a3][%mdl 32]} 40. c3 {[%emt 0:00:12]} a4 {[%emt 0:00:06][%mdl 1024] Threatens to win with ...a3. Black has compensation.} 41. Rb1 $2 {[%emt 0:00:13][%mdl 8192]} ({White has to play} 41. Qd4 $1 $15) 41... a3 $19 {[%emt 0:00:15]} 42. Ra1 {[%emt 0:00:11]} (42. Rxb5 a2 43. Rxe5 a1=Q+ 44. Kh2 fxe5 45. Qg3) 42... b4 {[%emt 0:00:11][%cal Bb5b4,Bb4b3][%mdl 32] Strongly threatening ...b3.} 43. Kf2 {[%emt 0:00:20]} b3 {[%emt 0:00:08] Weighted Error Value: White=0.49/Black=0.12 (very precise)} 0-1

[Event "MCCT Oslo Esports Cup 2022"]
[Site "Oslo"]
[Date "2022.04.20"]
[Round "1.1"]
[White "Van Foreest, Jorden"]
[Black "Praggnanandhaa R"]
[Result "0-1"]
[ECO "E32"]
[WhiteElo "2714"]
[BlackElo "2624"]
[Annotator "TA"]
[PlyCount "124"]
[EventDate "2022.04.14"]
[EventType "tourn"]
[EventCountry "NOR"]
[SourceTitle "playchess.com"]
[Source "ChessBase"]
[SourceQuality "1"]
[TimeControl "1500+10"]

{[%evp 13,124,0,0,7,0,0,7,0,0,0,8,0,0,0,0,7,3,-24,0,0,0,0,0,0,13,24,106,101,103,41,102,127,412,0,0,0,0,0,0,0,40,-32,-33,-179,-169,-169,-169,-174,-166,-188,-166,-183,-177,-206,-210,-223,-237,-242,-238,-276,-275,-261,-245,-358,-305,-306,-303,-257,-235,-563,-343,-476,-406,-1414,-1307,-1918,-600,-4995,-2595,-5920,-2685,-2364,-5908,-6781,-6430,-7262,-1235,-1016,-734,-7262,-7041,-2925,-5530,-2098,-1681,-4886,-4532,-4694,-2622,-2830,-2328,-12827,-12828,-12806,-12523,-8472,-5908,-5243,-4671,-2660,-2487,-1448,-1012]} 1. d4 {[%emt 0:10:00]} Nf6 {[%emt 0:10:00]} 2. c4 {[%emt 0:00:04]} e6 {[%emt 0:00:03]} 3. Nc3 {[%emt 0:00:04]} Bb4 {[%emt 0:00:02]} 4. Qc2 {[%emt 0:00:09]} O-O {[%emt 0:00:10]} 5. e4 {[%emt 0:00:05][%cal Be2e4,Be4e5][%mdl 32]} d5 {[%emt 0:00:02]} 6. e5 {[%emt 0:00:06]} Ne4 {[%emt 0:00:03]} 7. Bd3 {[%emt 0:00:06]} c5 {[%emt 0:00:08]} 8. Nf3 {[%emt 0:00:09] Black should prevent 0-0. E32: Nimzo-Indian: Classical (4 Qc2): 4...0-0.} cxd4 {[%emt 0:00:04]} 9. Nxd4 {[%emt 0:00:04]} Nd7 {[%emt 0:00:02]} 10. Bf4 {[%emt 0:00:11] The position is equal.} Qh4 {[%emt 0:00:09]} 11. g3 {[%emt 0:00:08]} Qh5 {[%emt 0:00:01]} 12. O-O {[%emt 0:00:12]} g5 {[%emt 0:00:09]} 13. cxd5 {[%emt 0:00:04]} Bxc3 {[%emt 0:00:02]} 14. bxc3 {[%emt 0:00:04][%cal Od5e6]} exd5 {[%emt 0:00:01] [#]} 15. g4 $146 {[%emt 0:00:06]} ({Predecessor:} 15. Be3 Nxe5 16. f3 Nc5 17. Bf5 Ne6 18. Rae1 Nxd4 19. Bxd4 Nc6 20. f4 Nxd4 21. cxd4 gxf4 22. Rxf4 Bxf5 23. Rxf5 {½-½ (30) So,W (2778)-Nakamura,H (2750) Berlin 2022}) 15... Qh3 {[%emt 0:04:46]} 16. Bg3 {[%emt 0:00:16]} Nxg3 {[%emt 0:03:18]} 17. fxg3 {[%emt 0:00:00]} Nxe5 {[%emt 0:00:01]} 18. Qd2 {[%emt 0:00:03]} h6 {[%emt 0:01:59]} (18... Nxg4 19. Rae1 $14) (18... Nxd3 19. Qxg5+ Kh8 20. Qf6+ Kg8 21. Rf5 $1 {[%mdl 512]} Qxg4 22. Rg5+ Qxg5 23. Qxg5+ Kh8 24. Rd1 $18) 19. Nf5 {[%emt 0:00:26]} Nxd3 {[%emt 0:01:39]} (19... Re8 $11) 20. Ne7+ $16 {[%emt 0:02:37]} Kg7 {[%emt 0:00:04] ...Ne5 is the strong threat.} 21. Qxd3 {[%emt 0:00:04]} Be6 {[%emt 0:01:50] [#]} (21... Bxg4 $14 22. Rab1 Be6) 22. Qd4+ $1 {[%emt 0:01:13]} (22. Nxd5 $6 Bxd5 23. Qxd5 Qxg4 $11) (22. c4 $6 Qxg4 23. cxd5 Qb4 $11) 22... f6 $4 {[%emt 0:00:08][%mdl 8192]} (22... Kh7 $16) 23. Nf5+ $2 {[%emt 0:00:49]} (23. Qd3 $18 Bxg4 24. Qg6+ Kh8 25. Rab1) 23... Bxf5 $11 {[%emt 0:00:06]} 24. Rxf5 {[%emt 0:00:00]} Rae8 {[%emt 0:00:44] Prevents Re1.} 25. Raf1 {[%emt 0:02:03][%cal Rf5f6]} Re2 $40 {[%emt 0:00:03][%csl Ge2,LRa2,LRh2][%cal Rh3h2][%mdl 128] Black mounts an attack. Chess con chili.} 26. R5f2 {[%emt 0:00:05]} Re5 {[%emt 0:01:19]} 27. Qa4 {[%emt 0:02:09]} ({Much worse is} 27. Qxa7 Qxg4 28. Rb2 (28. Rxf6 $2 Rxf6 29. Qxb7+ Kg6 $19) 28... Rf7 $11) (27. c4 $14 h5 28. gxh5 (28. cxd5 Qxg4 29. Qxa7 Qb4 $15) 28... dxc4 29. Qd6 (29. Qxc4 Qxh5 30. Qd4 Qe8 $11) 29... Qxh5 30. Rxf6) 27... Rf7 $15 {[%emt 0:00:24]} 28. Qd1 {[%emt 0:00:02] [#]} ({White should play} 28. Rb2 $15) 28... Re4 $1 $19 {[%emt 0:00:22]} 29. Qxd5 {[%emt 0:01:39]} Qxg4 {[%emt 0:00:02]} 30. Rf5 {[%emt 0:00:00]} Qe2 {[%emt 0:00:15]} 31. R5f2 {[%emt 0:03:40]} Qe3 {[%emt 0:00:06]} 32. Kg2 {[%emt 0:00:37]} Re5 {[%emt 0:00:15]} 33. Qb3 {[%emt 0:00:22]} b6 {[%emt 0:00:08]} 34. c4 {[%emt 0:00:21]} Qe4+ {[%emt 0:00:04]} 35. Kg1 {[%emt 0:00:03]} Rc5 {[%emt 0:00:18]} 36. Qb2 {[%emt 0:00:49][%cal Rf2f6]} Qc6 {[%emt 0:00:03]} ({Weaker is} 36... Rxc4 37. Rxf6 Qe3+ 38. Kh1 Qe4+ 39. Kg1 Qe3+ 40. Kh1 Qe4+ 41. Kg1 $11) 37. Qe2 {[%emt 0:00:36]} Rxc4 {[%emt 0:00:19]} 38. h4 {[%emt 0:01:39]} (38. Qd1 {keeps fighting.}) 38... Rc3 {[%emt 0:00:43]} 39. Kh2 {[%emt 0:00:01]} Qc7 {[%emt 0:00:17]} 40. Rg2 {[%emt 0:00:19]} Qe5 {[%emt 0:00:14]} 41. Qh5 $2 {[%emt 0:00:17]} (41. Qxe5 fxe5 42. Re1) 41... Re3 {[%emt 0:00:16] Strongly threatening ...Rd7.} 42. Rff2 {[%emt 0:00:05]} Re4 {[%emt 0:00:10] White must now prevent ...Rxh4+.} 43. hxg5 {[%emt 0:00:12]} (43. Re2 $142 Rc7 44. Rxe4 Qxe4 45. Qe2 Qxe2 46. Rxe2) 43... hxg5 {[%emt 0:00:02] And now ...Rh4+ would win. Black is clearly winning.} 44. Qd1 {[%emt 0:00:14]} Rd4 {[%emt 0:00:39]} (44... Kg6 $142 45. Re2 Rh7+ 46. Kg1 Rh3 47. Rxe4 Qxe4) 45. Qf1 {[%emt 0:00:08]} Rf8 {[%emt 0:00:05]} 46. Re2 {[%emt 0:00:07]} Re4 {[%emt 0:00:12]} (46... Rh8+ $142 47. Kg1 Qc5) 47. Kg1 {[%emt 0:00:16]} Re8 {[%emt 0:00:09][%cal Re4e2]} 48. Rxe4 {[%emt 0:00:05]} Qxe4 {[%emt 0:00:01][%mdl 4096] Endgame KQR-KQR} 49. Rd2 {[%emt 0:00:17]} Qe3+ {[%emt 0:00:16]} (49... Rh8 $142 50. Rd7+ Kg6) 50. Qf2 {[%emt 0:00:01]} Kg6 {[%emt 0:00:07]} 51. Kg2 {[%emt 0:00:02]} Qxf2+ {[%emt 0:00:09]} 52. Kxf2 {[%emt 0:00:00] KR-KR} Re4 {[%emt 0:00:03]} 53. Kf3 {[%emt 0:00:05]} f5 {[%emt 0:00:27]} 54. Rd6+ {[%emt 0:00:15]} Kh5 {[%emt 0:00:06]} 55. Rd5 {[%emt 0:00:22]} g4+ {[%emt 0:00:06]} 56. Kf2 {[%emt 0:00:03]} Kg5 {[%emt 0:00:01] Threatens to win with ...Ra4.} 57. a3 {[%emt 0:00:02]} Ra4 {[%emt 0:00:02]} 58. Rd3 {[%emt 0:00:01]} b5 {[%emt 0:00:14]} 59. Rb3 {[%emt 0:00:04]} a6 {[%emt 0:00:02]} 60. Rd3 {[%emt 0:00:00]} Rc4 {[%emt 0:00:08]} 61. Ke2 {[%emt 0:00:14]} Rc2+ {[%emt 0:00:16]} 62. Kd1 {[%emt 0:00:32]} Rf2 {[%emt 0:00:21] Never resign too early!  Weighted Error Value: White=1.04/Black=0.37} 0-1